Cogmind - Beta 13 @@@ ROGUE MODE // 2024.04.29 @ 04:31:50 Player: gigi283 Result: Destroyed by H-66 Slayer with Gauss Rifle Performance ------------- Evolutions (1) 500 Regions Visited (5) 1000 Robots Destroyed (58) 290 Value Destroyed (1562) 1562 Prototype IDs (2) 40 Alien Tech Used (0) 0 Bonus (600) 600 TOTAL SCORE: 3992 Bonus ------- Met Imprinter 300 Was Imprinted 300 Cogmind --------- Core Integrity 0/400 Matter 276/300 Energy 11/100 System Corruption 0% Temperature Warm (153) Movement Core (250) Ox4 Location -6/Proximity Caves Parts ------- > --- POWER (1) -------- (None) > --- PROPULSION (3) --- (None) > --- UTILITY (3) ------ Medium Storage Unit Advanced Visual Processing Unit Improved Targeting Computer > --- WEAPON (2) ------- Beamcaster > --- INVENTORY (10) --- Recoil Stabilizer Makeshift Light Armor Plating Hacking Drone Bay Phasing AFG Storm Laser Heavy Flak Cannon Peak State ------------ > --- POWER ------------ Light Angular Momentum Engine > --- PROPULSION ------- Aluminum Leg Aluminum Leg Carbon-fiber Leg > --- UTILITY ---------- Medium Storage Unit Advanced Visual Processing Unit Improved Targeting Computer > --- WEAPON ----------- High-powered Shock Rifle Assault Cannon > --- INVENTORY -------- Recoil Stabilizer Makeshift Light Armor Plating Hacking Drone Bay Phasing AFG Beam Rifle Beamcaster Storm Laser [Rating: 30] Favorites ----------- Power Light Angular Momentum Engine Engine Light Angular Momentum Engine Power Core Light Nuclear Core Propulsion Aluminum Leg Leg Aluminum Leg Utility Medium Storage Unit Storage Medium Storage Unit Processor Targeting Computer Protection Hardened Light Armor Plating Weapon Assault Cannon Energy Gun Beam Rifle Ballistic Gun Assault Rifle Ballistic Cannon Assault Cannon Launcher Grenade Launcher Impact Weapon Flail Build | -11 -10 -9 -9 -7 -6 ------- Run | Yrd Mat Mat Min Zio Pro Slots Evolved 2 | . . 2 . . . Power . | . . . . . . Propulsion 1 | . . 1 . . . Utility 1 | . . 1 . . . Weapon . | . . . . . . Parts Attached 54 | 7 5 25 6 3 8 Power 10 | 2 1 3 1 2 1 Engine 7 | 2 . 3 1 1 . Core 3 | . 1 . . 1 1 Reactor . | . . . . . . Propulsion 12 | 2 1 6 2 . 1 Treads . | . . . . . . Leg 12 | 2 1 6 2 . 1 Wheel . | . . . . . . Hover . | . . . . . . Flight . | . . . . . . Utility 10 | 1 2 5 . 1 1 Device . | . . . . . . Storage 2 | 1 1 . . . . Processor 3 | . . 1 . 1 1 Hackware . | . . . . . . Protection 5 | . 1 4 . . . Artifact . | . . . . . . Weapon 22 | 2 1 11 3 . 5 Energy Gun 9 | 1 . 3 2 . 3 Energy Cannon . | . . . . . . Ballistic Gun 5 | 1 . 4 . . . Ballistic Cannon 4 | . . 2 . . 2 Launcher 3 | . 1 2 . . . Special Weapon . | . . . . . . Impact Weapon 1 | . . . 1 . . Slashing Weapon . | . . . . . . Piercing Weapon . | . . . . . . Special Melee Weapon . | . . . . . . Unidentified Prototypes . | . . . . . . Parts Lost 14 | . . 4 1 . 9 Power 4 | . . 2 . . 2 Propulsion 6 | . . 1 1 . 4 Utility . | . . . . . . Weapon 4 | . . 1 . . 3 Highest Loss Streak 3 | . . 2 1 . 3 To Critical Strikes . | . . . . . . Average Slot Usage (%) 95 | . 98 90 97 99 85 Engine 7 | . 3 6 11 10 5 Core 2 | . 10 3 . . 1 Leg 29 | . 28 26 30 33 24 Storage 11 | . 14 11 11 11 11 Processor 13 | . . 11 11 19 22 Protection 7 | . 12 10 11 2 . Energy Gun 9 | . 7 7 10 11 9 Ballistic Gun 4 | . 14 7 . . . Ballistic Cannon 6 | . . 1 11 11 10 Launcher 2 | . 6 4 . . . Naked Turns . | . . . . . . Heaviest Build 32 | 14 21 30 32 32 29 Greatest Support 38 | 20 20 33 38 35 35 Greatest Overweight (x) 4 | . 1 1 1 . 4 Average Overweight (x) . | . . . . . . Largest Inventory Capacity 10 | 8 10 10 10 10 10 Average Capacity 9 | 6 9 10 10 10 10 Most Carried 10 | 4 5 10 8 10 10 Average Carried 6 | 1 3 4 6 9 9 Final Capacity 10 | 8 10 10 10 10 10 Final Carried 10 | 2 4 7 7 10 9 Class Distribution -------------------- 50% | Scavenger-Mutant 49% | Mutant Dominant Class ---------------- Mutant | -10/Materials Mutant | -9/Materials Scavenger-Mutant | -9/Mines Scavenger-Mutant | -7/Zion Scavenger-Mutant | -6/Proximity Caves Resources | -11 -10 -9 -9 -7 -6 ----------- Run | Yrd Mat Mat Min Zio Pro Matter Collected 1337 | 239 206 505 180 45 162 Remotely . | . . . . . . Salvage Created 1750 | . 307 831 206 58 348 Parts 102 | . 26 51 7 1 17 Haulers Intercepted . | . . . . . . Recyclers Shooed 2 | . 1 1 . . . Parts Field Recycled . | . . . . . . Retrieved Matter . | . . . . . . Parts Self-Destructed 13 | . . . . 1 12 Prevented 4 | . . . . . 4 Kills | -11 -10 -9 -9 -7 -6 ------- Run | Yrd Mat Mat Min Zio Pro Combat Hostiles Destroyed 41 | . 8 12 10 . 11 Melee 2 | . . . 2 . . Guns 18 | . 3 8 3 . 4 Cannons 13 | . . 1 5 . 7 AOE 8 | . 5 3 . . . Classes Destroyed 15 | . 5 5 2 . 3 Worker 2 | . 2 . . . . Builder 1 | . 1 . . . . Tunneler 1 | . . . 1 . . Recycler 3 | . . 3 . . . Mechanic 2 | . . 2 . . . Operator 1 | . . 1 . . . Drone 2 | . . . . . 2 Watcher 8 | . 3 5 . . . Swarmer 10 | . 2 . 4 . 4 Grunt 17 | . 6 3 5 . 3 Brawler 1 | . . . . . 1 Duelist 1 | . . 1 . . . Sentry 8 | . . 8 . . . Hunter 1 | . . . . . 1 Assembled 1 | . . . 1 . . Best Kill Streak 6 | . 3 6 4 . 4 Combat Bots Only 4 | . 2 3 4 . 4 Max Kills in Single Turn 3 | . 2 3 2 . 2 Gunslinging . | . . . . . . Exploded 2 | . 2 2 . . . Melee 1 | . . . 1 . . Uniques/NPCs Destroyed . | . . . . . . Combat | -11 -10 -9 -9 -7 -6 -------- Run | Yrd Mat Mat Min Zio Pro Hostile Shots Fired 257 | . 27 67 39 . 124 Missed 74 | . 8 21 13 . 32 Damage Taken 2684 | . 283 703 275 . 1423 Core 448 | . 31 14 39 . 364 Absorbed by Shields . | . . . . . . Redirected to Shielding 22 | . 22 . . . . Regen/Repaired (Parts) 532 | . . 273 . 259 . Core Remaining (%) 93 | 100 87 . . . . Volleys Fired 159 | . 31 59 23 12 34 Largest 2 | . 2 2 2 2 2 Hottest 119 | . 70 98 109 100 119 Shots Fired 237 | . 43 85 38 15 56 Gun 167 | . 38 68 19 12 30 Cannon 51 | . . 3 19 3 26 Launcher 19 | . 5 14 . . . Special . | . . . . . . Kinetic 115 | . 26 41 19 3 26 Thermal 97 | . 12 30 19 12 24 Explosive 19 | . 5 14 . . . Electromagnetic 6 | . . . . . 6 Robot Hit Streak 8 | . 6 5 7 4 8 Robot Miss Streak 5 | . 5 2 3 . 5 Penetration Max . | . . . . . . Secondary Targets . | . . . . . . Shots Hit Robots 136 | . 23 51 27 3 32 Core Hits 105 | . 21 40 13 1 30 Critical Kills 1 | . . . 1 . . Critical Parts Destroyed . | . . . . . . Critical Strikes 9 | . 1 . 4 . 4 Burn 6 | . 1 . 2 . 3 Blast 1 | . . . 1 . . Corrupt 1 | . . . . . 1 Smash 1 | . . . 1 . . Melee Attacks 5 | . . . 5 . . Impact 5 | . . . 5 . . Slashing . | . . . . . . Piercing . | . . . . . . Sneak Attacks . | . . . . . . Combat Hostiles . | . . . . . . Follow-up Attacks . | . . . . . . Damage Inflicted 3166 | . 628 1158 603 52 725 Guns 1455 | . 319 652 192 29 263 Cannons 867 | . . 47 335 23 462 Explosions 768 | . 309 459 . . . Melee 76 | . . . 76 . . Ramming . | . . . . . . Kinetic 1420 | . 218 382 335 23 462 Thermal 843 | . 101 317 192 29 204 Explosive 768 | . 309 459 . . . Electromagnetic 59 | . . . . . 59 Impact 76 | . . . 76 . . Slashing . | . . . . . . Piercing . | . . . . . . Highest Corruption 1 | . 1 . . . . Average Corruption 1 | . 1 . . . . Corruption Purged . | . . . . . . Corruption Blocked . | . . . . . . Overload Shots . | . . . . . . Overflow Damage 22 | . . 8 14 . . Projectiles 14 | . . . 14 . . Explosions 8 | . . 8 . . . Melee . | . . . . . . Knockbacks 13 | . . . 4 . 9 Impact . | . . . . . . Kinetic 13 | . . . 4 . 9 Secondary . | . . . . . . Self-Inflicted Damage 48 | . 25 23 . . . Shots 3 | . 2 1 . . . Rammed . | . . . . . . Targets Rammed . | . . . . . . Kicked . | . . . . . . Crushed . | . . . . . . Highest Temperature 297 | . 105 200 297 84 219 Average Temperature 67 | . 35 59 81 35 84 Received Heat Transfer 612 | . 84 231 72 . 225 Effects 1 | . . . . . 1 Energy Bleed 1 | . . . . . 1 Siege Activations . | . . . . . . Robots Corrupted . | . . . . . . Combat Hostiles . | . . . . . . Parts Fried . | . . . . . . Impact Corruptions . | . . . . . . Robots Melted . | . . . . . . Combat Hostiles . | . . . . . . Parts Melted 3 | . 1 . 1 . 1 Heat Transferred 2516 | . 370 740 629 74 703 Parts Sabotaged . | . . . . . . Parts Stolen . | . . . . . . Parts Stripped . | . . . . . . Power Chain Reactions . | . . . . . . Alert | -11 -10 -9 -9 -7 -6 ------- Run | Yrd Mat Mat Min Zio Pro Peak Influence 318 | . 174 318 233 . . Initial 123 | . . 11 123 . . Average 128 | . 59 168 146 . . Maximum Alert Level 1 | . . 1 1 . . Low Security (%) 70 | 100 100 53 63 . . Level 1 29 | . . 46 36 . . Level 2 . | . . . . . . Level 3 . | . . . . . . Level 4 . | . . . . . . Level 5 . | . . . . . . High Security . | . . . . . . Max Security . | . . . . . . Squads Dispatched 3 | . 1 2 . . . Investigation 2 | . 1 1 . . . Extermination . | . . . . . . Reinforcement 1 | . . 1 . . . Assault . | . . . . . . Garrison . | . . . . . . Intercept . | . . . . . . Searches Triggered . | . . . . . . Construction Impeded . | . . . . . . Haulers Reinforced . | . . . . . . Active Scanning Responses . | . . . . . . Cargo Convoy Interrupts . | . . . . . . Stealth | -11 -10 -9 -9 -7 -6 --------- Run | Yrd Mat Mat Min Zio Pro Distress Signals 1 | . 1 . . . . Communications Jammed . | . . . . . . Distress Signals . | . . . . . . Times Spotted 69 | . 15 25 12 . 17 Peak Tracking Total 5 | . 4 5 4 . 4 Tactical Retreats 1 | . . . 1 . . Traps | -11 -10 -9 -9 -7 -6 ------- Run | Yrd Mat Mat Min Zio Pro Traps Triggered 6 | . 3 3 . . . Indirectly . | . . . . . . Trap Hack Attempts . | . . . . . . Triggered . | . . . . . . Disarmed . | . . . . . . Reprogrammed . | . . . . . . Reused . | . . . . . . Traps Extracted . | . . . . . . Installed . | . . . . . . Triggered . | . . . . . . Machines | -11 -10 -9 -9 -7 -6 ---------- Run | Yrd Mat Mat Min Zio Pro Machines Disabled 4 | . 1 3 . . . Max in Single Turn 1 | . 1 1 . . . Machines Repaired . | . . . . . . Machines Dismantled . | . . . . . . Machines Sabotaged . | . . . . . . Overloaded Fab Kills . | . . . . . . Hacking | -11 -10 -9 -9 -7 -6 --------- Run | Yrd Mat Mat Min Zio Pro Machines Accessed 9 | . 2 7 . . . Terminals 6 | . 2 4 . . . Fabricators . | . . . . . . Repair Stations 2 | . . 2 . . . Recycling Units . | . . . . . . Scanalyzers 1 | . . 1 . . . Garrison Access . | . . . . . . Total Hacks 25 | . 3 22 . . . Successful 16 | . 3 13 . . . Failed 9 | . . 9 . . . Catastrophic . | . . . . . . Database Lockouts . | . . . . . . Manual 4 | . . 1 . 3 . Terminals 11 | . 3 8 . . . Fabricators . | . . . . . . Repair Stations 11 | . . 11 . . . Recycling Units . | . . . . . . Scanalyzers 3 | . . 3 . . . Garrison Access . | . . . . . . Terminal Hacks 8 | . 3 5 . . . Record 1 | . 1 . . . . Prototype ID Bank 1 | . . 1 . . . Alert Level 3 | . 1 2 . . . Maintenance Status 1 | . 1 . . . . Security Status 1 | . . 1 . . . Zone Layout 1 | . . 1 . . . Fabricator Hacks . | . . . . . . Repair Station Hacks 8 | . . 8 . . . Scan Component 4 | . . 4 . . . Repair 4 | . . 4 . . . Recycling Unit Hacks . | . . . . . . Scanalyzer . | . . . . . . Garrison Access Hacks . | . . . . . . Unauthorized Hacks . | . . . . . . Terminals . | . . . . . . Fabricators . | . . . . . . Repair Stations . | . . . . . . Recycling Units . | . . . . . . Scanalyzers . | . . . . . . Garrison Access . | . . . . . . Data Cores Recovered 1 | . . 1 . . . Used . | . . . . . . Hacking Detections 4 | . . 4 . . . Full Trace Events 2 | . . 2 . . . Feedback Events . | . . . . . . Feedback Blocked . | . . . . . . Robot Schematics Acquired . | . . . . . . Robots Built . | . . . . . . Authchips . | . . . . . . Time . | . . . . . . Total Robot Build Rating . | . . . . . . Part Schematics Acquired . | . . . . . . Parts Built . | . . . . . . Authchips . | . . . . . . Time . | . . . . . . Total Part Build Rating . | . . . . . . Parts Repaired 4 | . . 4 . . . Time 106 | . . 106 . . . Parts Recycled . | . . . . . . Recycled Matter . | . . . . . . Retrieved Matter . | . . . . . . Retrieved Components . | . . . . . . Parts Scanalyzed . | . . . . . . Part Schematics Acquired . | . . . . . . Parts Damaged . | . . . . . . Bothacking | -11 -10 -9 -9 -7 -6 ------------ Run | Yrd Mat Mat Min Zio Pro Used RIF Installer . | . . . . . . Robots Hacked . | . . . . . . Non-combat . | . . . . . . Combat . | . . . . . . Robot Hacks Applied . | . . . . . . Relay Couplers Released . | . . . . . . Fabnet Peak Effective % . | . . . . . . Robots Rewired . | . . . . . . Allies Hacked . | . . . . . . Hacks Repelled . | . . . . . . Allies | -11 -10 -9 -9 -7 -6 -------- Run | Yrd Mat Mat Min Zio Pro Total Allies 4 | . . . . 4 . Largest Group 4 | . . . . 4 . Highest-Rated Group 156 | . . . . 156 . Highest-Rated Ally 41 | . . . . 41 . Total Orders . | . . . . . . Ally Attacks . | . . . . . . Total Damage . | . . . . . . Kills . | . . . . . . Allies Corrupted . | . . . . . . Allies Melted . | . . . . . . Intel | -11 -10 -9 -9 -7 -6 ------- Run | Yrd Mat Mat Min Zio Pro Robot Analysis Total . | . . . . . . Derelict Logs Recovered 5 | . . . 2 2 1 Drone Launches . | . . . . . . Drone Recoveries . | . . . . . . Exploration | -11 -10 -9 -9 -7 -6 ------------- Run | Yrd Mat Mat Min Zio Pro Turns Passed 6095 | 71 991 1561 786 1903 783 Spaces Moved 3950 | 50 577 871 469 1462 521 Core 15 | 6 . . . . 9 Treads . | . . . . . . Legs 3935 | 44 577 871 469 1462 512 Wheels . | . . . . . . Hover . | . . . . . . Flight . | . . . . . . Fastest Speed 50 | 50 120 120 120 120 120 Average Speed 132 | 111 149 143 131 120 129 Slowest Speed 260 | 120 190 190 190 120 260 Overloaded Moves . | . . . . . . Propulsion Burnouts . | . . . . . . Robots Hopped . | . . . . . . Cave-ins Triggered . | . . . . . . Exploration Rate (%) 64 | 3 83 69 89 92 52 Regions Visited 5 Branch Regions 3 Pre-discovered Areas 3 | . . . . 3 . Known Exits Taken . | . . . . . . Unknown Exits Taken 5 | 1 1 1 1 1 . Scrap Searched 8 | . . . 2 3 3 Spaces Dug . | . . . . . . Terrain Destroyed 171 | . 35 133 2 . 1 Melee . | . . . . . . Projectile 3 | . . . 2 . 1 AOE 168 | . 35 133 . . . Terrain Rammed . | . . . . . . Walls Destroyed . | . . . . . . Machines Disabled . | . . . . . . Actions | -11 -10 -9 -9 -7 -6 --------- Run | Yrd Mat Mat Min Zio Pro Total 4595 | 64 663 1104 595 1598 571 Wait 352 | . 39 115 85 109 4 Move 3945 | 49 576 870 468 1461 521 Hop . | . . . . . . Pick Up 53 | 8 7 27 4 5 2 Fast Attach 5 | . . . . 2 3 Attach 34 | 6 2 19 5 . 2 Detach 2 | . 1 . 1 . . Swap 15 | 1 3 6 1 1 3 Drop 25 | . 4 8 3 8 2 Fire 159 | . 31 59 23 12 34 Melee 5 | . . . 5 . . Ram . | . . . . . . Kick . | . . . . . . Crush . | . . . . . . Escape Stasis . | . . . . . . Rewire . | . . . . . . Trap . | . . . . . . Miscellaneous . | . . . . . . Route ------- -11/Scrapyard -10/Materials (discovered 3 exits: *Mat x2 / [*Min]) -9/Materials (discovered 3 exits: [*Min x2] / [*Sto]) -9/Mines (discovered 4 exits: [*Mat x2] / [*Exi] / *Zio) -7/Zion -6/Proximity Caves History --------- Turn | Location | Event 5 | -11/Scrapyard | Discovered new exit (range 15) 72 | -11/Scrapyard | Entered Materials 255 | -10/Materials | Discovered new exit (range 13) 307 | -10/Materials | Build established: Mutant 610 | -10/Materials | Discovered new exit (range 5) 1046 | -10/Materials | Discovered new exit (range 8) 1063 | -10/Materials | Entered another Materials area 1063 | -9/Materials | Evolved 2 slots: Propulsion x1, Utility x1 1478 | -9/Materials | Discovered new exit (range 11) 1567 | -9/Materials | Discovered new exit (range 12) 1810 | -9/Materials | Repaired Imp. Aluminum Leg 2197 | -9/Materials | Repaired Autogun 2223 | -9/Materials | Repaired Aluminum Leg 2256 | -9/Materials | Repaired Particle Gun 2467 | -9/Materials | Discovered new exit (range 12) 2624 | -9/Materials | Entered Mines 2633 | -9/Mines | Met a Derelict bent on vengeance 2639 | -9/Mines | Learned Materials garrison access intel 2786 | -9/Mines | Deemed a non-threat by the Exiles lab entrance 2786 | -9/Mines | Discovered new exit (range 5) 2838 | -9/Mines | Discovered new exit (range 9) 3022 | -9/Mines | Build established: Scavenger-Mutant 3033 | -9/Mines | Excavation squad dispatched 3033 | -9/Mines | A large section of the Mines collapsed 3279 | -9/Mines | Learned Materials interactive machine intel 3298 | -9/Mines | Discovered new exit (range 14) 3366 | -9/Mines | A Derelict revealed a hidden shortcut to a safe place 3410 | -9/Mines | Entered Zion 3567 | -7/Zion | Learned location of Warlord (-4) 3782 | -7/Zion | Found Prototype Energy Gun 3963 | -7/Zion | Learned location of Extension (-6) 4050 | -7/Zion | Found Prototype Device 4168 | -7/Zion | Imprinted 4170 | -7/Zion | Declared Zion's savior 4344 | -7/Zion | Given the Hacking Drone Bay 4344 | -7/Zion | Found Prototype Device 4453 | -7/Zion | Visited the Megawrench Repair Shop 4453 | -7/Zion | Megawrench repaired 8 parts 4706 | -7/Zion | Discovered new exit (range 9) 5313 | -7/Zion | Entered Proximity Caves 5315 | -6/Proximity Caves | Spotter reported a threat 5316 | -6/Proximity Caves | Spotter reported a threat 5388 | -6/Proximity Caves | Spotter reported a threat 5545 | -6/Proximity Caves | Spotter reported a threat 5631 | -6/Proximity Caves | Spotter reported a threat 5795 | -6/Proximity Caves | Spotter reported a threat 5981 | -6/Proximity Caves | Core integrity fell below 50% 6020 | -6/Proximity Caves | Lost 3 parts (1p1n1w) 6083 | -6/Proximity Caves | Core integrity fell below 20% 6096 | -6/Proximity Caves | Destroyed by H-66 Slayer with Gauss Rifle Last Messages --------------- Lgt. Nuclear Core destroyed. Penetrated by Slug. Beam Rifle destroyed. Slug penetrates Wall. Acquired 1 matter. Slug penetrates Wall. Penetrated by Slug. Carbon-fiber Leg destroyed. Penetrated by Slug. H-66 Slayer destroyed. Slug penetrates Wall. Penetrated by Slug. Assault Cannon destroyed. Slug penetrates Wall. Penetrated by Slug. Lgt. Fission Core fries itself beyond repair. Hvy. Assault Rifle fries itself beyond repair. Flexi-carbon Leg fries itself beyond repair. Targeting Computer fries itself beyond repair. Penetrated by Slug. Map ----- +----------------------------------------------------+ | ####### ### ### #???? | | ### ##% ####?## #???? | | #?## ## %##????#### ##???? | | ##?# % ##??????# ##???? | | #?# % #??????# ##### | | ###?### ### #??????## # | | ??????## #?#### #???????###### # | | ######?## #????# #??############ # | | #### ##????# ### #??# ### | | ## #?????? #??# #?? | | ## #?????? ## #### ##? | | ### #??????### ####?# ## ## ## | | # ##?# #????????#####????? ###### # | | #! ###??# ####???????????????#######?# ### # | | #! #????# ## ##########??????????# ### #?# # | | # ###### ## ##?????????# ## #?# ## | | # ## ## #?????????# ##?# ###? | | #### ####??###?## #??# #??? | | ! ##??# #### #?## #??# #??? | | ### ! #???## ### ##??# #??? | | ##?## ! #????### #???# #??? | | ##???## ##% #??????## % #???# #??? | | ??????# ###[ ##???????##%h ##???# #??? | | ?????####?# "#????????# #### ##????# #??? | | ????? ????# %=##???????# #??# ##?????# #??? | | ???## ????# [ #???????#@ #?# ###??????# ??? | | ???# ????## % #???????# ## ##???????? ??? | | ??## ?????# %#??????? ### ##????????? ??? | | ??# ####### ##??????? #?####?????????? ??? | | ??# ## ## #???????# ???????????????# ??? | | ??# #???????## ????????????????# ??? | | ??# ##???????# ???????????????? ??? | | ??# #???????# ????????????????????? | | ?## ##??????? ???????????????????? | | ?# #####???????? ##???????????????????? | | ## ## #???????????? ##????????????????????? | | # ### ##???????????? #?????????????????????? | | #?####????????????? #?????????????????????? | | ##?????????????????? #????????? ?????????? | | ##?????????????????? #??????? ??????????? | | #####?????????????? ##??? #????????????? | | # #?????????????? ## #?????????????? | | # ###???????????? ##?????????????? | | # #######?????? #?????????????? | | # ##??### #?????????????? | | # #### #### " "" #?????????????? | | #??### #### ## "" """" ???????????????? | | # ????## #?# "" """????????????????? | | ### ?????## " " #?????????????? | | ??# ??????## ## ????????????? | +----------------------------------------------------+ Best States ------------- Heat Dissipation 28 Energy Generation 18 Energy Capacity 265 Matter Stores 300 Matter Capacity 300 Sight Range 20 Terrain Scan Density 10 Armor Coverage 225 Weapon Shielding 33 Evasion (%) 55 Targeting Accuracy 6 Item Schematics ----------------- None Robot Schematics ------------------ None Fabricated ------------ Nothing Alien Tech Used ----------------- None Achievements -------------- Robot Respite The One Tourist Challenges ------------ None Game ------ Seed OpticalScanAnalyzer Manual? 0 Play Time 01:35:16 Cumulative 5.9 hours Start 2024.04.29 @ 02:32:16 End 2024.04.29 @ 04:31:50 Sessions 1 Manual Loads 0 Difficulty Rogue Special Mode None Game No. 9 Rogue 9 Adventurer 0 Explorer 0 Win Type - Total 0 Types 0/0/0/0/0/0/0/0/0 Lore% 4 Gallery% 9 Achievement% 7 Wizard Run 0 Options --------- Layout 1 ASCII 0 Keyboard 0 Movement Mouse Keybinds 0 Fullscreen 2 Font 24/Smallcaps Map View 50x35 Zoom Use 0% Tactical HUD 0 Map Filters NONE Filters NONE Steam 1 RUN: d231da85-862c-4d1b-87de-333006507778